fUSD/lending_fUSD_20260627
["ID","MTS","AMOUNT","RATE_DAILY","PERIOD"]
[426520500,1782527432000,-500.0,0.00014999,2]
[426520485,1782527432000,-500.0,0.00014999,2]
[426520483,1782527432000,-506.32784785,0.00014999,2]
[426520477,1782527432000,-172.87325687,0.00014999,2]
[426520479,1782527432000,-500.0,0.00014999,2]
[426520481,1782527432000,-500.0,0.00014999,2]
[426520473,1782527432000,-150.0,0.00014998,2]
[426520475,1782527432000,-500.0,0.00014999,2]
[426520470,1782527432000,-252.42902503,0.00014942,2]
[426520471,1782527432000,-500.0,0.00014985,2]
[426520493,1782527432000,-500.0,0.00014999,2]
[426520531,1782527432000,-500.0,0.00014999,2]
[426520541,1782527432000,-500.0,0.00014999,2]
[426520528,1782527432000,-500.0,0.00014999,2]
[426520564,1782527432000,-129714.87869685,0.00015,2]
[426520565,1782527432000,-1254.41808677,0.00015,2]
[426520563,1782527432000,-63577.30164937,0.00015,2]
[426520562,1782527432000,-3237.21146143,0.00015,2]
[426520561,1782527432000,-39415.78652337,0.00015,2]
[426520530,1782527432000,-500.0,0.00014999,2]
[426520557,1782527432000,-500.0,0.00014999,2]
[426520556,1782527432000,-500.0,0.00014999,2]
[426520555,1782527432000,-500.0,0.00014999,2]
[426520554,1782527432000,-500.0,0.00014999,2]
[426520553,1782527432000,-500.0,0.00014999,2]
[426520552,1782527432000,-500.0,0.00014999,2]
[426520560,1782527432000,-372.25450405,0.00014999,2]
[426520559,1782527432000,-334.5039865,0.00014999,2]
[426520550,1782527432000,-500.0,0.00014999,2]
[426520558,1782527432000,-500.0,0.00014999,2]
[426520548,1782527432000,-500.0,0.00014999,2]
[426520536,1782527432000,-500.0,0.00014999,2]
[426520535,1782527432000,-500.0,0.00014999,2]
[426520537,1782527432000,-500.0,0.00014999,2]
[426520538,1782527432000,-500.0,0.00014999,2]
[426520539,1782527432000,-500.0,0.00014999,2]
[426520542,1782527432000,-500.0,0.00014999,2]
[426520540,1782527432000,-500.0,0.00014999,2]
[426520545,1782527432000,-500.0,0.00014999,2]
[426520547,1782527432000,-573.15183276,0.00014999,2]
[426520543,1782527432000,-500.0,0.00014999,2]
[426520544,1782527432000,-500.0,0.00014999,2]
[426520549,1782527432000,-550.0,0.00014999,2]
[426520546,1782527432000,-500.0,0.00014999,2]
[426520551,1782527432000,-500.0,0.00014999,2]
[426520570,1782527437000,-10432.97475125,0.00015,2]
[426520571,1782527437000,-678.76931747,0.00015,2]
[426520572,1782527437000,-429.3383332,0.00015,2]
[426520574,1782527438000,-5672.66315323,0.00015,2]
[426520573,1782527438000,-517.72330189,0.00015,2]
[426520582,1782527440000,-1800.0,0.00015,2]
[426520581,1782527440000,-1025.49280924,0.00015,2]
[426520588,1782527442000,-334.95766743,0.00015,2]
[426520587,1782527442000,-3227.74564766,0.00015,2]
[426520595,1782527446000,-822.9276,0.00015,2]
[426520593,1782527446000,-2748.22269387,0.00015,2]
[426520594,1782527446000,-85346.86382952,0.00015,2]
[426520591,1782527446000,-830.0,0.00015,2]
[426520592,1782527446000,-7943.7461334,0.00015,2]
[426520597,1782527652000,500.05,0.00037268,120]
[426520599,1782528105000,166.66,0.00021975,30]
[426520601,1782528224000,317.8,0.0001429,2]
[426520600,1782528224000,317.8,0.00014155,2]
[426520602,1782528367000,10000.0,0.00023,30]
[426520603,1782528369000,349.83,0.00013705,2]
[426520605,1782528369000,349.83,0.00014282,2]
[426520604,1782528369000,349.83,0.00013993,2]
[426520606,1782528380000,150.0,0.00016913,120]
[426520607,1782528384000,377.39,0.00023,30]
[426520612,1782528631000,-150.0,0.0001446,2]
[426520611,1782528631000,-317.8,0.00014426,2]
[426520615,1782528631000,-317.8,0.00014697,2]
[426520613,1782528631000,-317.8,0.00014561,2]
[426520614,1782528631000,-349.83,0.0001457,2]
[426520617,1782528631000,-317.8,0.00014832,2]
[426520626,1782528631000,-96088.70713702,0.00015,2]
[426520625,1782528631000,-2046.27201538,0.00015,2]
[426520627,1782528631000,-151.50502864,0.00015,2]
[426520620,1782528631000,-317.8,0.00014968,2]
[426520618,1782528631000,-349.83,0.00014859,2]
[426520622,1782528631000,-150.0,0.00014999,2]
[426520621,1782528631000,-300.0,0.00014999,2]
[426520619,1782528631000,-164.50830888,0.000149,2]
[426520624,1782528631000,-450.0,0.00015,2]
[426520623,1782528631000,-3931.50243621,0.00015,2]
[426520616,1782528631000,-202.88543389,0.00014759,2]
[426520666,1782528632000,-170.83,0.00020874,2]
[426520670,1782528632000,-2575.81,0.00020934,2]
[426520668,1782528632000,-193.94,0.00020918,2]
[426520657,1782528632000,-794.56,0.00019939,2]
[426520663,1782528632000,-241.0,0.00020521,2]
[426520659,1782528632000,-166.66,0.00020301,2]
[426520672,1782528632000,-83646.24,0.00021001,2]
[426520664,1782528632000,-166.66,0.0002072,2]
[426520675,1782528632000,-1148.93,0.00021111,2]
[426520684,1782528632000,-150.0,0.00021252,2]
[426520677,1782528632000,-2758.29,0.00021115,2]
[426520674,1782528632000,-9182.79477123,0.00021011,2]
[426520655,1782528632000,-166.66,0.00019883,2]
[426520681,1782528632000,-160.7,0.00021171,2]
[426520679,1782528632000,-166.66,0.00021138,2]
[426520683,1782528632000,-1852.42,0.00021244,2]
[426520680,1782528632000,-166.01,0.00021152,2]
[426520685,1782528632000,-160.92,0.00021298,2]
[426520682,1782528632000,-591.24944563,0.00021243,2]
[426520644,1782528632000,-200.0,0.00016999,2]
[426520645,1782528632000,-6045.64355115,0.00017038,2]
[426520653,1782528632000,-164.66,0.00019103,2]
[426520628,1782528632000,-151.0,0.00015,2]
[426520634,1782528632000,-317.8,0.00015374,2]
[426520633,1782528632000,-317.8,0.00015239,2]
[426520629,1782528632000,-15068.6670918,0.00015,2]
[426520635,1782528632000,-317.8,0.0001551,2]
[426520637,1782528632000,-250.0,0.00015869,2]
[426520638,1782528632000,-250.0,0.00015869,2]
[426520636,1782528632000,-317.8,0.00015645,2]
[426520639,1782528632000,-255.0,0.00016124,2]
[426520640,1782528632000,-500.80717316,0.00016582,2]
[426520632,1782528632000,-349.83,0.00015147,2]
[426520631,1782528632000,-317.8,0.00015103,2]
[426520630,1782528632000,-1238.5404683,0.00015,2]
[426520642,1782528632000,-1538.12,0.00016883,2]
[426520641,1782528632000,-200.0,0.0001688,2]
[426520647,1782528632000,-500.0,0.00017671,2]
[426520649,1782528632000,-160.0,0.00017784,2]
[426520687,1782528632000,-1671.68475686,0.000214,2]
[426520643,1782528632000,-150.0,0.00016913,2]
[426520651,1782528632000,-586.61,0.0001872,2]
[426520688,1782528632000,-151.0,0.00021413,2]
[426520661,1782528632000,-219.09219304,0.00020517,2]
[426520692,1782528632000,-164.97,0.00021879,2]
[426520712,1782528632000,-760.16082108,0.000221,2]
[426520719,1782528632000,-9182.79477115,0.000228,2]
[426520722,1782528632000,-1671.68475686,0.000232,2]
[426520716,1782528632000,-794.56,0.00022431,2]
[426520714,1782528632000,-1671.68475686,0.000223,2]
[426520713,1782528632000,-500.0,0.0002211,2]
[426520711,1782528632000,-911.52393578,0.000221,2]
[426520717,1782528632000,-1671.68475686,0.000225,2]
[426520715,1782528632000,-1798.11,0.00022396,2]
[426520720,1782528632000,-1798.11,0.00022929,2]
[426520721,1782528632000,-1671.68475686,0.00023,2]
[426520732,1782528632000,-356.82273408,0.00024174,2]
[426520723,1782528632000,-166.01,0.00023267,2]
[426520725,1782528632000,-1671.68475686,0.000234,2]
[426520724,1782528632000,-160.7,0.00023288,2]
[426520728,1782528632000,-193.94,0.00023533,2]
[426520726,1782528632000,-996.71510838,0.00023462,2]
[426520730,1782528632000,-170.64,0.00024174,7]
[426520727,1782528632000,-801.39489162,0.00023462,2]
[426520689,1782528632000,-166.66,0.00021557,2]
[426520731,1782528632000,-505.23400485,0.00024174,2]
[426520718,1782528632000,-1671.68475686,0.000227,2]
[426520729,1782528632000,-166.97,0.00023562,2]
[426520702,1782528632000,-151.0,0.0002195,2]
[426520703,1782528632000,-151.0,0.0002195,2]
[426520686,1782528632000,-1798.11,0.00021329,2]
[426520690,1782528632000,-1671.68475686,0.000216,2]
[426520696,1782528632000,-151.0,0.0002195,2]
[426520697,1782528632000,-151.0,0.0002195,2]
[426520691,1782528632000,-1798.11,0.00021862,2]
[426520694,1782528632000,-5000.0,0.00021918,2]
[426520695,1782528632000,-151.0,0.0002195,2]
[426520699,1782528632000,-151.0,0.0002195,2]
[426520707,1782528632000,-151.0,0.0002195,2]
[426520693,1782528632000,-1671.68475686,0.000219,2]
[426520708,1782528632000,-151.0,0.0002195,2]
[426520710,1782528632000,-154.76459868,0.0002195,2]
[426520706,1782528632000,-151.0,0.0002195,2]
[426520701,1782528632000,-151.0,0.0002195,2]
[426520698,1782528632000,-151.0,0.0002195,2]
[426520709,1782528632000,-151.0,0.0002195,2]
[426520704,1782528632000,-151.0,0.0002195,2]
[426520700,1782528632000,-151.0,0.0002195,2]
[426520705,1782528632000,-151.0,0.0002195,2]
[426520835,1782528638000,-151.19,0.00026061,7]
[426520832,1782528638000,-166.97,0.00025506,2]
[426520829,1782528638000,-294.99471823,0.00025397,2]
[426520834,1782528638000,-151.46,0.00026061,7]
[426520836,1782528638000,-151.62,0.00026061,7]
[426520838,1782528638000,-193.94,0.00026148,120]
[426520825,1782528638000,-4266.86,0.0002498,2]
[426520831,1782528638000,-160.7,0.00025405,2]
[426520833,1782528638000,-154.00796842,0.00025783,7]
[426520842,1782528638000,-294.99471823,0.00026397,2]
[426520840,1782528638000,-9182.79477115,0.00026379,2]
[426520837,1782528638000,-168.0,0.00026102,5]
[426520844,1782528638000,-401.20628293,0.00026398,2]
[426520846,1782528638000,-500.0,0.00026398,2]
[426520845,1782528638000,-500.0,0.00026398,2]
[426520843,1782528638000,-500.0,0.00026398,2]
[426520848,1782528638000,-1048.58088708,0.00026398,14]
[426520827,1782528638000,-200.08378792,0.00025,2]
[426520850,1782528638000,-2767.22155116,0.00026398,14]
[426520839,1782528638000,-4722.18582084,0.0002624,2]
[426520826,1782528638000,-150.99,0.0002498,2]
[426520816,1782528638000,-236.3,0.00024658,2]
[426520828,1782528638000,-166.01,0.00025383,2]
[426520847,1782528638000,-604.42949349,0.00026398,2]
[426520793,1782528638000,-800.97971401,0.00024174,2]
[426520796,1782528638000,-883.35754005,0.00024174,2]
[426520787,1782528638000,-151.0,0.00024174,2]
[426520790,1782528638000,-344.69326107,0.00024174,2]
[426520792,1782528638000,-167.17,0.00024174,2]
[426520802,1782528638000,-8315.65274594,0.00024174,2]
[426520806,1782528638000,-9999.99,0.00024174,2]
[426520804,1782528638000,-999.99,0.00024174,2]
[426520820,1782528638000,-151.62,0.00024658,2]
[426520814,1782528638000,-9182.79477115,0.0002459,2]
[426520810,1782528638000,-9999.99,0.00024174,2]
[426520812,1782528638000,-170.83,0.00024353,2]
[426520817,1782528638000,-1000.0,0.00024658,2]
[426520819,1782528638000,-151.19,0.00024658,2]
[426520821,1782528638000,-160.92,0.00024848,120]
[426520824,1782528638000,-794.56,0.00024923,2]
[426520822,1782528638000,-4722.18582084,0.0002488,2]
[426520830,1782528638000,-397.33785547,0.00025398,14]
[426520823,1782528638000,-452.85679292,0.0002488,2]
[426520808,1782528638000,-3130.7,0.00024174,2]
[426520849,1782528638000,-1849.82097706,0.00026398,14]
[426520872,1782528638000,-8372.1946061,0.00028,8]
[426520852,1782528638000,-452.85679289,0.00026628,2]
[426520889,1782528638000,-216.48047229,0.0002975,2]
[426520886,1782528638000,-166.01,0.00029613,2]
[426520888,1782528638000,-164.0,0.00029644,30]
[426520880,1782528638000,-154.0,0.00028644,30]
[426520877,1782528638000,-196.66314548,0.00028397,7]
[426520878,1782528638000,-160.92,0.00028397,120]
[426520879,1782528638000,-164.0,0.00028644,30]
[426520884,1782528638000,-2707.0,0.0002912,20]
[426520885,1782528638000,-2758.29,0.00029561,2]
[426520881,1782528638000,-193.94,0.00028763,120]
[426520887,1782528638000,-160.7,0.00029639,2]
[426520893,1782528638000,-153.15647526,0.0003,30]
[426520892,1782528638000,-11000.0,0.0003,10]
[426520891,1782528638000,-9182.79477115,0.00029958,2]
[426520895,1782528638000,-9999.99,0.0003,2]
[426520890,1782528638000,-794.56,0.00029908,120]
[426520896,1782528638000,-5831.15,0.0003,2]
[426520894,1782528638000,-9144.90805854,0.0003,2]
[426520897,1782528638000,-2707.0,0.0003008,20]
[426520853,1782528638000,-177.22907949,0.00027167,2]
[426520883,1782528638000,-4722.18582084,0.00028959,2]
[426520874,1782528638000,-9182.79477115,0.00028169,2]
[426520882,1782528638000,-459.9804353,0.00028854,7]
[426520875,1782528638000,-586.61,0.00028364,7]
[426520851,1782528638000,-3744.1404,0.00026398,14]
[426520866,1782528638000,-623.09,0.000275,2]
[426520859,1782528638000,-9435.06,0.00027397,10]
[426520856,1782528638000,-236.3,0.00027397,2]
[426520854,1782528638000,-151.27836285,0.00027397,2]
[426520863,1782528638000,-166.97,0.00027451,2]
[426520860,1782528638000,-7862.55,0.00027397,10]
[426520858,1782528638000,-11322.07,0.00027397,10]
[426520864,1782528638000,-166.01,0.00027498,2]
[426520857,1782528638000,-13586.49,0.00027397,10]
[426520855,1782528638000,-196.66314548,0.00027397,7]
[426520861,1782528638000,-191.90802039,0.00027397,2]
[426520867,1782528638000,-160.7,0.00027522,2]
[426520868,1782528638000,-4722.18582084,0.00027599,2]
[426520865,1782528638000,-500.0,0.000275,7]
[426520869,1782528638000,-61471.62463869,0.00027831,2]
[426520873,1782528638000,-153.07175421,0.00028,120]
[426520876,1782528638000,-452.85679289,0.00028376,2]
[426520862,1782528638000,-794.56,0.00027415,120]
[426520870,1782528638000,-170.83,0.00027831,120]
[426520871,1782528638000,-159.0,0.00028,5]
[426520938,1782528639000,-4722.18582084,0.00030318,2]
[426520930,1782528639000,-236.3,0.00030137,2]
[426520934,1782528639000,-238.44251189,0.00030137,2]
[426520932,1782528639000,-334.28407746,0.00030137,2]
[426520928,1782528639000,-300.0,0.00030136,2]
[426520931,1782528639000,-167.14203873,0.00030137,2]
[426520933,1782528639000,-501.42611619,0.00030137,2]
[426520929,1782528639000,-183.61077072,0.00030136,2]
[426520937,1782528639000,-1545.56737945,0.00030159,7]
[426520940,1782528639000,-251.0,0.0003036,2]
[426520935,1782528639000,-3362.2741014,0.00030149,2]
[426520939,1782528639000,-264.37604556,0.0003036,2]
[426520943,1782528639000,-685.0,0.00030572,5]
[426520949,1782528639000,-152.152611,0.0003104,7]
[426520942,1782528639000,-251.0,0.0003036,2]
[426520941,1782528639000,-251.0,0.0003036,2]
[426520945,1782528639000,-417.031,0.00030577,26]
[426520947,1782528639000,-1000.0,0.00031,7]
[426520948,1782528639000,-2707.0,0.0003104,20]
[426520951,1782528639000,-193.94,0.00031378,120]
[426520946,1782528639000,-164.0,0.00030644,30]
[426520950,1782528639000,-170.83,0.0003131,120]
[426520953,1782528639000,-156.746081,0.00031507,7]
[426520963,1782528639000,-153.176666,0.00031748,7]
[426520952,1782528639000,-162.246772,0.00031507,7]
[426520936,1782528639000,-484.47553686,0.00030159,7]
[426520955,1782528639000,-4722.18582084,0.00031678,2]
[426520944,1782528639000,-2151.684,0.00030577,26]
[426520921,1782528639000,-300.0,0.00030136,2]
[426520907,1782528639000,-200.09406443,0.00030136,2]
[426520924,1782528639000,-300.0,0.00030136,2]
[426520956,1782528639000,-166.01,0.00031728,2]
[426520901,1782528639000,-1098.61121708,0.0003013,2]
[426520900,1782528639000,-452.85679289,0.00030124,2]
[426520899,1782528639000,-151.0,0.000301,7]
[426520898,1782528639000,-30032.78999341,0.000301,7]
[426520902,1782528639000,-648.77932208,0.0003013,2]
[426520914,1782528639000,-305.86724768,0.00030136,2]
[426520915,1782528639000,-300.0,0.00030136,2]
[426520905,1782528639000,-303.63503964,0.0003013,2]
[426520906,1782528639000,-1925.51063843,0.0003013,2]
[426520908,1782528639000,-500.0,0.00030136,2]
[426520913,1782528639000,-500.0,0.00030136,2]
[426520904,1782528639000,-482.05597389,0.0003013,2]
[426520910,1782528639000,-500.0,0.00030136,2]
[426520909,1782528639000,-500.0,0.00030136,2]
[426520903,1782528639000,-206.3165088,0.0003013,2]
[426520911,1782528639000,-500.0,0.00030136,2]
[426520912,1782528639000,-500.0,0.00030136,2]
[426520927,1782528639000,-300.0,0.00030136,2]
[426520916,1782528639000,-300.0,0.00030136,2]
[426520923,1782528639000,-300.0,0.00030136,2]
[426520922,1782528639000,-300.0,0.00030136,2]
[426520919,1782528639000,-300.0,0.00030136,2]
[426520917,1782528639000,-300.0,0.00030136,2]
[426520920,1782528639000,-300.0,0.00030136,2]
[426520918,1782528639000,-300.0,0.00030136,2]
[426520925,1782528639000,-300.0,0.00030136,2]
[426520926,1782528639000,-300.0,0.00030136,2]
[426520954,1782528639000,-168.72622451,0.00031644,30]
[426520965,1782528639000,-160.7,0.00031757,2]
[426520958,1782528639000,-175.8078,0.00031748,7]
[426520992,1782528639000,-2707.0,0.0003392,20]
[426520990,1782528639000,-345.56049828,0.00033566,2]
[426521000,1782528639000,-151.0,0.00034883,7]
[426520998,1782528639000,-1006.02,0.000348,10]
[426520999,1782528639000,-2707.0,0.0003488,20]
[426520994,1782528639000,-4722.18582084,0.00034397,2]
[426520993,1782528639000,-501.0,0.00034289,2]
[426520996,1782528639000,-1500.0,0.000344,7]
[426520997,1782528639000,-150.0,0.00034521,10]
[426520995,1782528639000,-156.05791962,0.00034397,7]
[426521002,1782528639000,-165.88439529,0.000349,120]
[426521001,1782528639000,-182.407744,0.00034883,7]
[426521012,1782528639000,-1500.0,0.00035,2]
[426521013,1782528639000,-1512.1982,0.00035,2]
[426521004,1782528639000,-167.00110126,0.000349,120]
[426521003,1782528639000,-207.4079168,0.000349,120]
[426521005,1782528639000,-200.0,0.000349,12]
[426521006,1782528639000,-1500.0,0.00034902,10]
[426521009,1782528639000,-186.82983972,0.00035,120]
[426521011,1782528639000,-8738.56358873,0.00035,30]
[426521008,1782528639000,-156.30840754,0.00035,120]
[426521007,1782528639000,-501.0,0.00034971,2]
[426521010,1782528639000,-252.66811975,0.00035,60]
[426521014,1782528639000,-1500.0,0.00035,2]
[426521015,1782528639000,-165.77,0.0003505,30]
[426521017,1782528639000,-2294.24714715,0.000352,2]
[426521019,1782528639000,-666.0,0.00035332,5]
[426520991,1782528639000,-452.85679289,0.0003362,2]
[426520989,1782528639000,-1500.0,0.0003356,10]
[426521016,1782528639000,-170.63,0.00035052,30]
[426520987,1782528639000,-9182.79477115,0.00033537,2]
[426520985,1782528639000,-623.09,0.00033449,2]
[426520957,1782528639000,-9182.79477115,0.00031748,2]
[426520961,1782528639000,-462.474353,0.00031748,7]
[426520960,1782528639000,-462.474353,0.00031748,7]
[426520962,1782528639000,-462.474353,0.00031748,7]
[426520967,1782528639000,-160.92,0.00031947,120]
[426520966,1782528639000,-452.85679289,0.00031872,2]
[426520964,1782528639000,-153.227188,0.00031748,7]
[426520974,1782528639000,-151.0,0.00032,7]
[426520973,1782528639000,-151.0,0.00032,7]
[426521018,1782528639000,-9182.79477115,0.00035327,2]
[426520975,1782528639000,-151.0,0.00032,7]
[426520970,1782528639000,-154.374947,0.00032,7]
[426520968,1782528639000,-220.75913406,0.00032,10]
[426520959,1782528639000,-462.474353,0.00031748,7]
[426520976,1782528639000,-151.0,0.00032,7]
[426520969,1782528639000,-2707.0,0.00032,20]
[426520986,1782528639000,-750.2247587,0.00033529,2]
[426520983,1782528639000,-206.92228552,0.00033,30]
[426520982,1782528639000,-2707.0,0.0003296,20]
[426520979,1782528639000,-9173.0,0.00032665,5]
[426520984,1782528639000,-4722.18582084,0.00033037,2]
[426520978,1782528639000,-167.17,0.00032232,7]
[426520981,1782528639000,-251.68,0.00032877,2]
[426520972,1782528639000,-159.048794,0.00032,7]
[426520971,1782528639000,-170.053861,0.00032,7]
[426520977,1782528639000,-1206.75,0.00032232,7]
[426520988,1782528639000,-250.0,0.00033541,7]
[426520980,1782528639000,-236.3,0.00032877,2]
[426521060,1782528640000,-325.51,0.000356,7]
[426521056,1782528640000,-150.0,0.0003555,7]
[426521053,1782528640000,-151.0,0.00035455,7]
[426521055,1782528640000,-164.71574738,0.00035516,2]
[426521057,1782528640000,-769.67049103,0.00035558,2]
[426521061,1782528640000,-300.0,0.00035615,10]
[426521059,1782528640000,-168.47,0.00035559,7]
[426521062,1782528640000,-300.0,0.00035615,10]
[426521058,1782528640000,-167.99,0.00035558,7]
[426521063,1782528640000,-434.47389806,0.00035615,10]
[426521068,1782528640000,-154.460865,0.00035616,7]
[426521066,1782528640000,-152.49,0.00035615,7]
[426521069,1782528640000,-3000.0,0.00035616,2]
[426521070,1782528640000,-3000.0,0.00035616,2]
[426521071,1782528640000,-3000.0,0.00035616,2]
[426521064,1782528640000,-152.48,0.00035615,7]
[426521067,1782528640000,-160.37,0.00035616,60]
[426521072,1782528640000,-3000.0,0.00035616,2]
[426521076,1782528640000,-3000.0,0.00035616,2]
[426521077,1782528640000,-3000.0,0.00035616,2]
[426521073,1782528640000,-3000.0,0.00035616,2]
[426521074,1782528640000,-3000.0,0.00035616,2]
[426521075,1782528640000,-3000.0,0.00035616,2]
[426521065,1782528640000,-160.37,0.00035615,60]
[426521054,1782528640000,-165.77,0.0003551,69]
[426521046,1782528640000,-462.474353,0.00035455,7]
[426521047,1782528640000,-462.474353,0.00035455,7]
[426521083,1782528640000,-3000.0,0.00035616,2]
[426521023,1782528640000,-452.85679289,0.00035368,2]
[426521021,1782528640000,-670.0,0.00035357,5]
[426521037,1782528640000,-170.0,0.00035424,7]
[426521039,1782528640000,-300.0,0.00035454,10]
[426521036,1782528640000,-173.0,0.00035424,7]
[426521038,1782528640000,-300.0,0.00035454,10]
[426521035,1782528640000,-168.47,0.00035407,2]
[426521033,1782528640000,-161.74,0.00035406,30]
[426521031,1782528640000,-152.48,0.00035406,30]
[426521025,1782528640000,-1500.0,0.00035399,2]
[426521048,1782528640000,-462.474353,0.00035455,7]
[426521027,1782528640000,-178.01,0.00035406,30]
[426521032,1782528640000,-167.99,0.00035406,2]
[426521040,1782528640000,-300.0,0.00035454,10]
[426521041,1782528640000,-300.0,0.00035454,10]
[426521042,1782528640000,-100000.0,0.00035455,60]
[426521044,1782528640000,-151.0,0.00035455,7]
[426521049,1782528640000,-462.474353,0.00035455,7]
[426521051,1782528640000,-151.0,0.00035455,7]
[426521052,1782528640000,-151.0,0.00035455,7]
[426521050,1782528640000,-151.0,0.00035455,7]
[426521043,1782528640000,-100000.0,0.00035455,90]
[426521045,1782528640000,-151.0,0.00035455,7]
[426521029,1782528640000,-161.76,0.00035406,30]
[426521034,1782528640000,-152.49,0.00035406,30]
[426521084,1782528640000,-3000.0,0.00035616,2]
[426521082,1782528640000,-3000.0,0.00035616,2]
[426521115,1782528640000,-3000.0,0.00035616,2]
[426521113,1782528640000,-3000.0,0.00035616,2]
[426521110,1782528640000,-3000.0,0.00035616,2]
[426521108,1782528640000,-3000.0,0.00035616,2]
[426521109,1782528640000,-3000.0,0.00035616,2]
[426521117,1782528640000,-3000.0,0.00035616,2]
[426521112,1782528640000,-3000.0,0.00035616,2]
[426521114,1782528640000,-3000.0,0.00035616,2]
[426521118,1782528640000,-3000.0,0.00035616,2]
[426521119,1782528640000,-3000.0,0.00035616,2]
[426521122,1782528640000,-3000.0,0.00035616,2]
[426521106,1782528640000,-3000.0,0.00035616,2]
[426521121,1782528640000,-3000.0,0.00035616,2]
[426521120,1782528640000,-3000.0,0.00035616,2]
[426521126,1782528640000,-3000.0,0.00035616,2]
[426521124,1782528640000,-3000.0,0.00035616,2]
[426521128,1782528640000,-3000.0,0.00035616,2]
[426521123,1782528640000,-3000.0,0.00035616,2]
[426521133,1782528640000,-3000.0,0.00035616,2]
[426521129,1782528640000,-3000.0,0.00035616,2]
[426521130,1782528640000,-3000.0,0.00035616,2]
[426521131,1782528640000,-3000.0,0.00035616,2]
[426521132,1782528640000,-3000.0,0.00035616,2]
[426521080,1782528640000,-3000.0,0.00035616,2]
[426521127,1782528640000,-3000.0,0.00035616,2]
[426521111,1782528640000,-3000.0,0.00035616,2]
[426521125,1782528640000,-3000.0,0.00035616,2]
[426521107,1782528640000,-3000.0,0.00035616,2]
[426521078,1782528640000,-3000.0,0.00035616,2]
[426521116,1782528640000,-3000.0,0.00035616,2]
[426521081,1782528640000,-3000.0,0.00035616,2]
[426521079,1782528640000,-3000.0,0.00035616,2]
[426521091,1782528640000,-3000.0,0.00035616,2]
[426521087,1782528640000,-3000.0,0.00035616,2]
[426521088,1782528640000,-3000.0,0.00035616,2]
[426521089,1782528640000,-3000.0,0.00035616,2]
[426521090,1782528640000,-3000.0,0.00035616,2]
[426521085,1782528640000,-3000.0,0.00035616,2]
[426521093,1782528640000,-3000.0,0.00035616,2]
[426521092,1782528640000,-3000.0,0.00035616,2]
[426521086,1782528640000,-3000.0,0.00035616,2]
[426521100,1782528640000,-3000.0,0.00035616,2]
[426521105,1782528640000,-3000.0,0.00035616,2]
[426521103,1782528640000,-3000.0,0.00035616,2]
[426521101,1782528640000,-3000.0,0.00035616,2]
[426521099,1782528640000,-3000.0,0.00035616,2]
[426521097,1782528640000,-3000.0,0.00035616,2]
[426521102,1782528640000,-3000.0,0.00035616,2]
[426521096,1782528640000,-3000.0,0.00035616,2]
[426521104,1782528640000,-3000.0,0.00035616,2]
[426521095,1782528640000,-3000.0,0.00035616,2]
[426521094,1782528640000,-3000.0,0.00035616,2]
[426521098,1782528640000,-3000.0,0.00035616,2]
[426521175,1782528641000,-152.48,0.00036033,30]
[426521176,1782528641000,-152.49,0.00036033,30]
[426521171,1782528641000,-20913.96,0.00036,60]